fUSD/lending_fUSD_20240614
["ID","MTS","AMOUNT","RATE_DAILY","PERIOD"]
[329490620,1718391090832,-500.0,0.00023287,3]
[329490621,1718391090860,-1875.8,0.00023287,3]
[329490622,1718391090888,-1135.39,0.00023287,3]
[329490623,1718391090935,-500.0,0.00023287,3]
[329490624,1718391090960,-500.0,0.00023287,3]
[329490625,1718391090982,-500.0,0.00023287,3]
[329490626,1718391091022,-1001.18,0.00023287,3]
[329490627,1718391091060,-1380.26,0.00023287,3]
[329490628,1718391091084,-3380.84,0.00023287,3]
[329490629,1718391091129,-592.03,0.00023287,3]
[329490630,1718391091169,-500.0,0.00023287,3]
[329490631,1718391091197,-574.14,0.00023287,3]
[329490632,1718391091235,-7850.36,0.00023287,3]
[329490633,1718391091255,-1263.36,0.00023287,3]
[329490634,1718391091317,-824.94,0.00023287,3]
[329490635,1718391091337,-500.0,0.00023287,3]
[329490636,1718391091358,-500.0,0.00023287,3]
[329490637,1718391091377,-1398.36,0.00023287,3]
[329490638,1718391091429,-630.11,0.00023287,3]
[329490639,1718391091459,-5934.47,0.00023287,3]
[329490640,1718391091497,-500.0,0.00023287,3]
[329490641,1718391091523,-3522.98,0.00023287,3]
[329490642,1718391091544,-2985.25,0.00023287,3]
[329490643,1718391091569,-550.9,0.00023287,3]
[329490644,1718391091584,-880.09,0.00023287,3]
[329490645,1718391091629,-500.0,0.00023287,3]
[329490646,1718391091658,-704.19,0.00023287,3]
[329490647,1718391091726,-502.94,0.00023287,3]
[329490648,1718391091757,-500.0,0.00023287,3]
[329490649,1718391091771,-3676.36,0.00023287,3]
[329490650,1718391091798,-151.0,0.00023287,7]
[329490651,1718391091827,-1444.38,0.00023287,3]
[329490652,1718391091845,-2978.28,0.00023287,3]
[329490653,1718391091868,-29735.61,0.00023287,3]
[329490654,1718391091881,-506.37,0.00023287,3]
[329490655,1718391091899,-500.0,0.00023287,3]
[329490656,1718391091964,-500.0,0.00023287,3]
[329490657,1718391092011,-500.0,0.00023287,3]
[329490658,1718391092046,-677.26,0.00023287,3]
[329490659,1718391092089,-500.0,0.00023287,3]
[329490660,1718391092104,-1055.02,0.00023287,3]
[329490661,1718391092123,-10598.1,0.00023287,3]
[329490662,1718391092151,-2806.41,0.00023287,3]
[329490663,1718391092182,-3662.28,0.00023287,3]
[329490664,1718391092214,-500.0,0.00023287,3]
[329490665,1718391092251,-537.48,0.00023287,3]
[329490666,1718391092274,-1684.13,0.00023287,3]
[329490667,1718391092323,-551.7,0.00023287,3]
[329490668,1718391092339,-2671.11,0.00023287,3]
[329490669,1718391092357,-4218.2,0.00023287,3]
[329490670,1718391092379,-1667.89,0.00023287,3]
[329490671,1718391092420,-784.17,0.00023287,3]
[329490672,1718391092434,-1148.99,0.00023287,3]
[329490673,1718391092449,-758.7,0.00023287,3]
[329490674,1718391092471,-733.84,0.00023287,3]
[329490675,1718391092505,-1290.88,0.00023287,3]
[329490676,1718391092520,-1732.28,0.00023287,3]
[329490677,1718391092544,-514.76,0.00023287,3]
[329490678,1718391092559,-3449.65,0.00023287,3]
[329490679,1718391092575,-997.58,0.00023287,3]
[329490680,1718391092639,-500.0,0.00023287,3]
[329490681,1718391092662,-500.0,0.00023287,3]
[329490682,1718391092695,-432.32420023,0.00023287,3]
[329490683,1718391092738,-500.0,0.00023287,3]
[329490684,1718391092752,-500.0,0.00023287,3]
[329490685,1718391092800,-500.0,0.00023287,3]
[329490686,1718391092814,-1730.18,0.00023287,3]
[329490687,1718391092831,-2247.87,0.00023287,3]
[329490688,1718391092849,-500.0,0.00023287,3]
[329490689,1718391092890,-500.0,0.00023287,3]
[329490690,1718391092906,-1843.05,0.00023287,3]
[329490691,1718391092925,-1435.95,0.00023287,3]
[329490692,1718391092948,-500.0,0.00023287,3]
[329490693,1718391092970,-500.0,0.00023287,3]
[329490694,1718391092987,-18617.5390821,0.00023287,3]
[329490695,1718391093432,-1966.81238745,0.00023287,3]
[329490696,1718391093460,-2356.43045917,0.00023287,3]
[329490697,1718391093476,-101.19807128,0.00023287,3]
[329490698,1718391093499,-500.0,0.00023287,3]
[329490699,1718391093512,-775.47,0.00023287,3]
[329490700,1718391093526,-2112.68,0.00023287,3]
[329490701,1718391093544,-1080.33,0.00023287,3]
[329490702,1718391093570,-877.99,0.00023287,3]
[329490703,1718391093593,-500.0,0.00023287,3]
[329490704,1718391093603,-500.0,0.00023287,3]
[329490705,1718391093615,-2181.07253543,0.00023287,3]
[329490706,1718391093629,-2835.79270651,0.00023287,3]
[329490707,1718391093657,-4820.08475806,0.00023287,3]
[329490708,1718391093675,-943.94,0.00023287,3]
[329490709,1718391093697,-1030.33,0.00023287,3]
[329490710,1718391093728,-500.0,0.00023287,3]
[329490711,1718391093749,-1458.53,0.00023287,3]
[329490712,1718391093764,-896.65,0.00023287,3]
[329490713,1718391093784,-962.9,0.00023287,3]
[329490714,1718391093802,-707.69,0.00023287,3]
[329490715,1718391093821,-631.9,0.00023287,3]
[329490716,1718391093842,-628.55175734,0.00023287,3]
[329490717,1718391093872,-147.80824266,0.00023287,3]
[329490718,1718391093897,-1750.42556778,0.00023287,3]
[329490719,1718391093922,-663.51218457,0.00023287,3]
[329490720,1718391093937,-700.34344032,0.00023287,3]
[329490721,1718391093952,-2820.89888294,0.00023287,3]
[329490722,1718391094112,-500.0,0.00021917,2]
[329490723,1718391094125,-500.0,0.00022191,3]
[329490724,1718391094165,-2240.82,0.00022465,3]
[329490725,1718391094177,-2968.54992439,0.00023287,3]
[329490726,1718391094194,-500.0,0.00023287,3]
[329490727,1718391094207,-500.0,0.00023287,3]
[329490728,1718391094221,-1481.84,0.00023287,3]
[329490729,1718391094237,-1510.07,0.00023287,3]
[329490730,1718391094255,-306.35316932,0.00023287,3]
[329490731,1718391094272,-193.64683068,0.00023287,3]
[329490732,1718391094284,-500.0,0.00023287,3]
[329490733,1718391094313,-40.37783211,0.00023287,3]
[329490734,1718391094336,-2795.50216789,0.00023287,3]
[329490735,1718391094361,-1196.91,0.00023287,3]
[329490736,1718391094382,-150.17342888,0.00023287,3]
[329490737,1718391094397,-289.29978316,0.00023287,3]
[329490738,1718391094449,-336.65999971,0.00023287,3]
[329490739,1718391094479,-896.50744124,0.00023287,3]
[329490740,1718391094508,-1356.9970628,0.00023287,3]
[329490741,1718391094537,-454.11992891,0.00023287,3]
[329490742,1718391094585,-108.5923553,0.00023287,3]
[329490743,1718391094605,-325.49656506,0.00023287,3]
[329490744,1718391094627,-1753.97,0.00023287,3]
[329490745,1718391094644,-722.49918611,0.00023287,3]
[329490746,1718391094681,-890.2,0.00023287,3]
[329490747,1718391094724,-1502.1110016,0.00023287,3]
[329490748,1718391094751,-3203.53981229,0.00023287,3]
[329490749,1718391094781,-2118.45,0.00023287,3]
[329490750,1718391094794,-756.69,0.00023287,3]
[329490751,1718391094807,-10351.74,0.00023287,3]
[329490752,1718391094844,-1145.68,0.00023287,3]
[329490753,1718391094856,-778.85,0.00023287,3]
[329490754,1718391094883,-4520.85,0.00023287,3]
[329490755,1718391094897,-3747.1,0.00023287,3]
[329490756,1718391094910,-6900.79,0.00023287,3]
[329490757,1718391094935,-500.0,0.00023287,3]
[329490758,1718391094952,-1394.79,0.00023287,3]
[329490759,1718391094982,-821.26,0.00023287,3]
[329490760,1718391095006,-1088.84,0.00023287,3]
[329490761,1718391095035,-500.0,0.00023287,3]
[329490762,1718391095064,-500.0,0.00023287,3]
[329490763,1718391095079,-4458.97,0.00023287,3]
[329490764,1718391095100,-1772.91,0.00023287,3]
[329490765,1718391095114,-726.01,0.00023287,3]
[329490766,1718391095136,-151.0,0.00023287,7]
[329490767,1718391095149,-1108.5,0.00023287,3]
[329490768,1718391095165,-150.0,0.00023321,2]
[329490769,1718391095193,-150.0,0.00023327,2]
[329490770,1718391095217,-150.0,0.00023329,2]
[329490771,1718391095230,-150.0,0.00023338,2]
[329490772,1718391095270,-150.0,0.00023351,2]
[329490773,1718391095291,-150.0,0.00023352,2]
[329490774,1718391095303,-150.0,0.00023373,2]
[329490775,1718391095315,-150.0,0.00023373,2]
[329490776,1718391095332,-150.0,0.00023374,2]
[329490777,1718391095373,-150.0,0.00023381,2]
[329490778,1718391095391,-150.0,0.00023398,2]
[329490779,1718391095412,-150.0,0.00023453,2]
[329490780,1718391095445,-150.0,0.00023454,2]
[329490781,1718391095472,-500.0,0.00023464,2]
[329490782,1718391095486,-150.0,0.00023489,2]
[329490783,1718391095497,-300.49318013,0.000235,2]
[329490784,1718391095508,-150.0,0.00023508,2]
[329490785,1718391095626,-606.07,0.00023509,2]
[329490786,1718391095639,-2210.32035,0.0002355,2]
[329490787,1718391095650,-500.0,0.00023561,3]
[329490788,1718391095662,-500.0,0.00023561,3]
[329490789,1718391095674,-500.0,0.00023561,3]
[329490790,1718391095698,-500.0,0.00023561,3]
[329490791,1718391095739,-458.47120397,0.00023561,3]
[329490792,1718391095758,-500.0,0.00023561,3]
[329490793,1718391095769,-500.0,0.00023561,3]
[329490794,1718391095782,-500.0,0.00023561,3]
[329490795,1718391095818,-261.47937601,0.00023561,3]
[329490796,1718391095842,-500.0,0.00023561,3]
[329490797,1718391095868,-500.0,0.00023561,3]
[329490798,1718391095905,-500.0,0.00023561,3]
[329490799,1718391095917,-500.0,0.00023561,3]
[329490800,1718391095935,-500.0,0.00023561,3]
[329490801,1718391095947,-500.0,0.00023561,3]
[329490802,1718391095966,-520.9,0.00023561,3]
[329490803,1718391095977,-500.0,0.00023561,3]
[329490804,1718391095992,-500.0,0.00023561,3]
[329490805,1718391096005,-500.0,0.00023561,3]
[329490806,1718391096023,-500.0,0.00023561,3]
[329490807,1718391096039,-500.0,0.00023561,3]
[329490808,1718391096052,-500.0,0.00023561,3]
[329490809,1718391096063,-1545.17,0.00023561,3]
[329490810,1718391096077,-500.0,0.00023561,3]
[329490811,1718391096090,-500.0,0.00023561,3]
[329490812,1718391096105,-551.41,0.00023561,3]
[329490813,1718391096116,-525.33099501,0.00023561,3]
[329490814,1718391096128,-500.0,0.00023561,3]
[329490815,1718391096141,-500.0,0.00023561,3]
[329490816,1718391096156,-538.1,0.00023561,3]
[329490817,1718391096172,-500.0,0.00023561,3]
[329490818,1718391096184,-500.0,0.00023561,3]
[329490819,1718391096197,-500.0,0.00023561,3]
[329490820,1718391096215,-500.0,0.00023561,3]
[329490821,1718391096253,-151.0,0.00023561,7]
[329490822,1718391096273,-500.0,0.00023561,3]
[329490823,1718391096293,-500.0,0.00023561,3]
[329490824,1718391096317,-500.0,0.00023561,3]
[329490825,1718391096329,-500.0,0.00023561,3]
[329490826,1718391096356,-500.0,0.00023561,3]
[329490827,1718391096370,-500.0,0.00023561,3]
[329490828,1718391096387,-500.0,0.00023561,3]
[329490829,1718391096401,-629.06,0.00023561,3]
[329490830,1718391096415,-700.24,0.00023561,3]
[329490831,1718391096426,-500.0,0.00023561,3]
[329490832,1718391096440,-500.0,0.00023561,3]
[329490833,1718391096451,-500.0,0.00023561,2]
[329490834,1718391096488,-500.0,0.00023561,3]
[329490835,1718391096506,-500.0,0.00023561,3]
[329490836,1718391096530,-500.0,0.00023561,3]
[329490837,1718391096541,-500.0,0.00023561,3]
[329490838,1718391096571,-500.0,0.00023561,3]
[329490839,1718391096594,-500.0,0.00023561,3]
[329490840,1718391096610,-500.0,0.00023561,3]
[329490841,1718391096634,-500.0,0.00023561,3]
[329490842,1718391096647,-500.0,0.00023561,3]
[329490843,1718391096660,-500.0,0.00023561,3]
[329490844,1718391096683,-500.0,0.00023561,2]
[329490845,1718391096706,-500.0,0.00023561,3]
[329490846,1718391096719,-500.0,0.00023561,2]
[329490847,1718391096737,-516.82,0.00023561,3]
[329490848,1718391096753,-862.8,0.00023561,3]
[329490849,1718391096770,-500.0,0.00023561,3]
[329490850,1718391096784,-500.0,0.00023561,3]
[329490851,1718391096799,-500.0,0.00023561,3]
[329490852,1718391096830,-500.0,0.00023561,3]
[329490853,1718391096876,-617.34,0.00023561,3]
[329490854,1718391096911,-500.0,0.00023561,3]
[329490855,1718391096943,-500.0,0.00023561,3]
[329490856,1718391096961,-500.0,0.00023561,3]
[329490857,1718391096991,-816.94,0.00023561,3]
[329490858,1718391097022,-500.0,0.00023561,3]
[329490860,1718391097054,-626.07621985,0.00023561,3]
[329490861,1718391097092,-830.47,0.00023561,3]
[329490862,1718391097105,-500.0,0.00023561,3]
[329490863,1718391097120,-500.0,0.00023561,3]
[329490864,1718391097138,-573.68,0.00023561,3]
[329490865,1718391097176,-707.73,0.00023561,3]
[329490866,1718391097188,-500.0,0.00023561,3]
[329490867,1718391097213,-500.0,0.00023561,3]
[329490868,1718391097227,-500.0,0.00023561,3]
[329490869,1718391097280,-28747.69,0.00023561,3]
[329490870,1718391097313,-500.0,0.00023561,3]
[329490871,1718391097326,-601.92,0.00023561,3]
[329490872,1718391097346,-1170.48,0.00023561,3]
[329490873,1718391097388,-1416.16,0.00023561,3]
[329490874,1718391097409,-1701.44,0.00023561,3]
[329490875,1718391097422,-500.0,0.00023561,3]
[329490876,1718391097438,-1761.3,0.00023561,3]
[329490877,1718391097449,-500.0,0.00023561,3]
[329490878,1718391097463,-500.0,0.00023561,3]
[329490879,1718391097479,-500.0,0.00023561,3]
[329490880,1718391097491,-1556.84,0.00023561,3]
[329490881,1718391097511,-8784.28,0.00023561,3]
[329490882,1718391097547,-500.0,0.00023561,3]
[329490883,1718391097567,-1000.01,0.00023561,3]
[329490884,1718391097578,-2993.16,0.00023561,3]
[329490885,1718391097591,-1794.81,0.00023561,3]
[329490886,1718391097606,-753.41,0.00023561,3]
[329490887,1718391097617,-500.0,0.00023561,3]
[329490888,1718391097629,-500.0,0.00023561,3]
[329490889,1718391097640,-500.0,0.00023561,3]
[329490890,1718391097653,-1970.6,0.00023561,3]
[329490891,1718391097665,-1875.8,0.00023561,3]
[329490892,1718391097679,-1135.39,0.00023561,3]
[329490893,1718391097691,-500.0,0.00023561,3]
[329490894,1718391097703,-500.0,0.00023561,3]
[329490895,1718391097721,-500.0,0.00023561,3]
[329490896,1718391097738,-1001.18,0.00023561,3]
[329490897,1718391097751,-1380.26,0.00023561,3]
[329490898,1718391097777,-3380.84,0.00023561,3]
[329490899,1718391097790,-592.03,0.00023561,3]
[329490900,1718391097802,-500.0,0.00023561,3]
[329490901,1718391097817,-574.14,0.00023561,3]
[329490902,1718391097835,-7850.36,0.00023561,3]
[329490903,1718391097849,-1263.36,0.00023561,3]
[329490904,1718391097866,-824.94,0.00023561,3]
[329490905,1718391097891,-500.0,0.00023561,3]
[329490906,1718391097905,-500.0,0.00023561,3]
[329490907,1718391097917,-1398.36,0.00023561,3]
[329490908,1718391097929,-630.11,0.00023561,3]
[329490909,1718391097947,-5934.47,0.00023561,3]
[329490910,1718391097961,-500.0,0.00023561,3]
[329490911,1718391097975,-3522.98,0.00023561,3]
[329490912,1718391097990,-2985.25,0.00023561,3]
[329490913,1718391098001,-550.9,0.00023561,3]
[329490914,1718391098023,-500.0,0.00023561,3]
[329490915,1718391098036,-880.09,0.00023561,3]
[329490916,1718391098049,-704.19,0.00023561,3]
[329490917,1718391098066,-502.94,0.00023561,3]
[329490918,1718391098077,-500.0,0.00023561,3]
[329490919,1718391098098,-3676.36,0.00023561,3]
[329490920,1718391098112,-1444.38,0.00023561,3]
[329490921,1718391098133,-2978.28,0.00023561,3]
[329490922,1718391098150,-29735.61,0.00023561,3]
[329490923,1718391098163,-506.37,0.00023561,3]
[329490924,1718391098182,-500.0,0.00023561,3]
[329490925,1718391098205,-500.0,0.00023561,3]
[329490926,1718391098232,-500.0,0.00023561,3]
[329490927,1718391098246,-677.26,0.00023561,3]
[329490928,1718391098258,-500.0,0.00023561,3]
[329490929,1718391098272,-1055.02,0.00023561,3]
[329490930,1718391098283,-10598.1,0.00023561,3]
[329490931,1718391098295,-2806.41,0.00023561,3]
[329490932,1718391098313,-500.0,0.00023561,3]
[329490933,1718391098328,-3662.28,0.00023561,3]
[329490934,1718391098343,-537.48,0.00023561,3]
[329490935,1718391098360,-1684.13,0.00023561,3]
[329490936,1718391098376,-2671.11,0.00023561,3]
[329490937,1718391098398,-4218.2,0.00023561,3]
[329490938,1718391098440,-1667.89,0.00023561,3]
[329490939,1718391098464,-784.17,0.00023561,3]
[329490940,1718391098484,-1148.99,0.00023561,3]
[329490941,1718391098499,-758.7,0.00023561,3]
[329490942,1718391098529,-733.84,0.00023561,3]
[329490943,1718391098546,-1290.88,0.00023561,3]
[329490944,1718391098558,-1732.28,0.00023561,3]
[329490945,1718391098575,-514.76,0.00023561,3]
[329490946,1718391098589,-3449.65,0.00023561,3]
[329490947,1718391098602,-997.58,0.00023561,3]
[329490948,1718391098626,-500.0,0.00023561,3]
[329490949,1718391098642,-500.0,0.00023561,3]
[329490950,1718391098657,-500.0,0.00023561,3]
[329490951,1718391098669,-500.0,0.00023561,3]
[329490952,1718391098684,-1730.18,0.00023561,3]
[329490953,1718391098696,-2247.87,0.00023561,3]
[329490954,1718391098708,-500.0,0.00023561,3]
[329490955,1718391098719,-500.0,0.00023561,3]
[329490956,1718391098731,-1843.05,0.00023561,3]
[329490957,1718391098742,-500.0,0.00023561,3]
[329490958,1718391098755,-1435.95,0.00023561,3]
[329490959,1718391098768,-500.0,0.00023561,3]
[329490960,1718391098780,-23041.98,0.00023561,3]
[329490961,1718391098797,-500.0,0.00023561,3]
[329490962,1718391098810,-775.47,0.00023561,3]
[329490963,1718391098823,-1080.33,0.00023561,3]
[329490964,1718391098838,-2112.68,0.00023561,3]
[329490965,1718391098853,-877.99,0.00023561,3]
[329490966,1718391098871,-500.0,0.00023561,3]
[329490967,1718391098894,-500.0,0.00023561,3]
[329490968,1718391098924,-9836.95,0.00023561,3]
[329490969,1718391098938,-943.94,0.00023561,3]
[329490970,1718391098951,-1030.33,0.00023561,3]
[329490971,1718391098963,-500.0,0.00023561,3]
[329490972,1718391098975,-1458.53,0.00023561,3]
[329490973,1718391098996,-896.65,0.00023561,3]
[329490974,1718391099067,-962.9,0.00023561,3]
[329490975,1718391099093,-707.69,0.00023561,3]
[329490976,1718391099107,-631.9,0.00023561,3]
[329490977,1718391099120,-776.36,0.00023561,3]
[329490978,1718391099135,-8903.73,0.00023561,3]
[329490979,1718391099149,-500.0,0.00023561,3]
[329490980,1718391099192,-500.0,0.00023561,3]
[329490981,1718391099260,-1481.84,0.00023561,3]
[329490982,1718391099274,-1510.07,0.00023561,3]
[329490983,1718391099292,-500.0,0.00023561,3]
[329490984,1718391099328,-500.0,0.00023561,3]
[329490985,1718391099357,-2835.88,0.00023561,3]
[329490986,1718391099392,-1196.91,0.00023561,3]
[329490987,1718391099407,-3592.35,0.00023561,3]
[329490988,1718391099425,-1753.97,0.00023561,3]
[329490989,1718391099459,-6318.35,0.00023561,3]
[329490990,1718391099491,-2118.45,0.00023561,3]
[329490991,1718391099525,-756.69,0.00023561,3]
[329490992,1718391099542,-10351.74,0.00023561,3]
[329490993,1718391099571,-1145.68,0.00023561,3]
[329490994,1718391099584,-778.85,0.00023561,3]
[329490995,1718391099596,-4342.00793219,0.00023561,3]
[329490996,1718391099621,-178.84206781,0.00023561,3]
[329490997,1718391099638,-3747.1,0.00023561,3]
[329490998,1718391099651,-6900.79,0.00023561,3]
[329490999,1718391099667,-500.0,0.00023561,3]
[329491000,1718391099683,-1394.79,0.00023561,3]
[329491001,1718391099696,-821.26,0.00023561,3]
[329491002,1718391099709,-1088.84,0.00023561,3]
[329491003,1718391099726,-500.0,0.00023561,3]
[329491004,1718391099739,-463.85886075,0.00023561,3]
[329491005,1718391099761,-4458.97,0.00023561,3]
[329491006,1718391099832,-1772.91,0.00023561,3]
[329491007,1718391099848,-726.01,0.00023561,3]
[329491008,1718391099865,-151.0,0.00023561,7]
[329491009,1718391099880,-1108.5,0.00023561,3]
[329491010,1718391099896,-150.0,0.00023569,2]
[329491011,1718391099922,-150.0,0.00023585,2]
[329491012,1718391099935,-150.0,0.00023679,2]
[329491013,1718391099960,-150.0,0.00023681,2]
[329491014,1718391099978,-732.79545294,0.000237,2]
[329491015,1718391100004,-818.59454706,0.000237,2]
[329491016,1718391100016,-10000.0,0.00023724,2]
[329491017,1718391100030,-150.0,0.00023739,2]
[329491018,1718391100048,-150.0,0.00023753,2]
[329491019,1718391100065,-150.0,0.00023762,2]
[329491020,1718391100081,-150.0,0.0002377,2]
[329491021,1718391100115,-155.0,0.000238,2]
[329491022,1718391100144,-500.0,0.00023807,2]
[329491023,1718391100176,-150.0,0.00023812,2]
[329491024,1718391100192,-150.0,0.00023815,2]
[329491025,1718391100232,-150.0,0.00023825,2]
[329491026,1718391100284,-500.0,0.00023835,3]
[329491027,1718391100302,-500.0,0.00023835,3]
[329491028,1718391100315,-500.0,0.00023835,3]
[329491029,1718391100344,-500.0,0.00023835,3]
[329491030,1718391100361,-500.0,0.00023835,3]
[329491031,1718391100372,-500.0,0.00023835,3]
[329491032,1718391100387,-500.0,0.00023835,3]
[329491033,1718391100414,-500.0,0.00023835,3]
[329491034,1718391100436,-500.0,0.00023835,3]
[329491035,1718391100465,-500.0,0.00023835,3]
[329491036,1718391100543,-500.0,0.00023835,3]
[329491037,1718391100577,-500.0,0.00023835,3]
[329491038,1718391100612,-500.0,0.00023835,3]
[329491039,1718391100627,-520.9,0.00023835,3]
[329491040,1718391100651,-500.0,0.00023835,3]
[329491041,1718391100666,-500.0,0.00023835,3]
[329491042,1718391100683,-500.0,0.00023835,3]
[329491043,1718391100702,-282.15327722,0.00023835,3]
[329491044,1718391100725,-500.0,0.00023835,3]
[329491045,1718391100751,-500.0,0.00023835,3]
[329491046,1718391100780,-1545.17,0.00023835,3]
[329491047,1718391100801,-500.0,0.00023835,3]
[329491048,1718391100814,-500.0,0.00023835,3]
[329491049,1718391100862,-551.41,0.00023835,3]
[329491050,1718391100883,-500.0,0.00023835,3]
[329491051,1718391100912,-500.0,0.00023835,3]
[329491052,1718391100924,-151.0,0.00023835,7]
[329491053,1718391100955,-538.1,0.00023835,3]
[329491054,1718391100988,-500.0,0.00023835,3]
[329491055,1718391101017,-356.10807548,0.00023835,3]
[329491056,1718391101031,-500.0,0.00023835,3]
[329491057,1718391101051,-500.0,0.00023835,3]
[329491058,1718391101075,-500.0,0.00023835,3]
[329491059,1718391101099,-500.0,0.00023835,3]
[329491060,1718391101110,-500.0,0.00023835,3]
[329491061,1718391101124,-500.0,0.00023835,3]
[329491062,1718391101136,-500.0,0.00023835,3]
[329491063,1718391101147,-378.38,0.00023835,3]
[329491064,1718391101176,-629.06,0.00023835,3]
[329491065,1718391101189,-500.0,0.00023835,3]
[329491066,1718391101201,-700.24,0.00023835,3]
[329491067,1718391101212,-500.0,0.00023835,3]
[329491068,1718391101228,-500.0,0.00023835,3]
[329491069,1718391101240,-500.0,0.00023835,2]
[329491070,1718391101252,-500.0,0.00023835,3]
[329491071,1718391101276,-500.0,0.00023835,3]
[329491072,1718391101297,-208.78224553,0.00023835,3]
[329491073,1718391101313,-500.0,0.00023835,3]
[329491074,1718391101327,-500.0,0.00023835,3]
[329491075,1718391101348,-500.0,0.00023835,3]
[329491076,1718391101360,-500.0,0.00023835,3]
[329491077,1718391101382,-500.0,0.00023835,3]
[329491078,1718391101396,-500.0,0.00023835,3]
[329491079,1718391101432,-500.0,0.00023835,3]
[329491080,1718391101460,-500.0,0.00023835,2]
[329491081,1718391101480,-500.0,0.00023835,3]
[329491082,1718391101522,-500.0,0.00023835,2]
[329491083,1718391101536,-516.82,0.00023835,3]
[329491084,1718391101563,-862.8,0.00023835,3]
[329491085,1718391101575,-500.0,0.00023835,3]
[329491086,1718391101592,-500.0,0.00023835,3]
[329491087,1718391101608,-500.0,0.00023835,3]
[329491088,1718391101620,-500.0,0.00023835,3]
[329491089,1718391101635,-617.34,0.00023835,3]
[329491090,1718391101649,-500.0,0.00023835,3]
[329491091,1718391101665,-500.0,0.00023835,3]
[329491092,1718391101710,-500.0,0.00023835,3]
[329491093,1718391101723,-816.94,0.00023835,3]
[329491094,1718391101742,-168.91801098,0.00023835,3]
[329491095,1718391101764,-830.47,0.00023835,3]
[329491096,1718391101796,-500.0,0.00023835,3]
[329491097,1718391101814,-500.0,0.00023835,3]
[329491098,1718391101855,-573.68,0.00023835,3]
[329491099,1718391101870,-707.73,0.00023835,3]
[329491100,1718391101891,-500.0,0.00023835,3]
[329491101,1718391101914,-500.0,0.00023835,3]
[329491102,1718391101938,-500.0,0.00023835,3]
[329491103,1718391102016,-28747.69,0.00023835,3]
[329491104,1718391102048,-500.0,0.00023835,3]
[329491105,1718391102083,-601.92,0.00023835,3]
[329491106,1718391102122,-1170.48,0.00023835,3]
[329491107,1718391102175,-1416.16,0.00023835,3]
[329491108,1718391102188,-1065.21405705,0.00023835,3]
[329491109,1718391102224,-636.22594295,0.00023835,3]
[329491110,1718391102257,-500.0,0.00023835,3]
[329491111,1718391102284,-1761.3,0.00023835,3]
[329491112,1718391102298,-500.0,0.00023835,3]
[329491113,1718391102326,-500.0,0.00023835,3]
[329491114,1718391102348,-500.0,0.00023835,3]
[329491115,1718391102375,-1556.84,0.00023835,3]
[329491116,1718391102394,-8784.28,0.00023835,3]
[329491117,1718391102417,-500.0,0.00023835,3]
[329491118,1718391102436,-1000.01,0.00023835,3]
[329491119,1718391102453,-2993.16,0.00023835,3]
[329491120,1718391102480,-1794.81,0.00023835,3]